bitfinex/quotes_SOLUSD_20250217
["timestamp","ask_amount","ask_price","bid_price","bid_amount"]
[1739782061737,41.53422487,183.96,183.92,48.19007052]
[1739782061944,41.53422487,183.97,183.94,1.0]
[1739782062159,45.33922487,183.97,183.92,49.19007052]
[1739782062362,41.53422487,183.96,183.93,1.0]
[1739782062744,41.53422487,183.97,183.93,1.0]
[1739782062957,41.53422487,183.97,183.92,49.19007052]
[1739782063154,41.53422487,183.97,183.94,1.0]
[1739782063439,41.53422487,183.97,183.92,49.19007052]
[1739782063440,41.53422487,183.97,183.93,1.0]
[1739782063655,41.53422487,183.97,183.94,1.0]
[1739782063863,41.53422487,183.97,183.93,1.0]
[1739782064037,41.53422487,183.97,183.92,49.19007052]
[1739782064244,45.33932487,183.96,183.92,49.19007052]
[1739782064656,45.33932487,183.96,183.93,1.0]
[1739782065139,45.33932487,183.96,183.92,48.19007052]
[1739782065339,41.53422487,183.94,183.92,49.19007052]
[1739782066042,3.70569841,183.94,183.92,49.19007052]
[1739782066240,7.51129841,183.94,183.92,49.19007052]
[1739782066763,3.8056,183.94,183.92,49.19007052]
[1739782067146,41.53422487,183.97,183.92,49.19007052]
[1739782067336,13.3166,183.98,183.93,1.0]
[1739782067543,41.53422487,183.97,183.93,1.0]
[1739782067760,3.8039,184.02,183.99,1.0]
[1739782069365,0.03,184.03,183.99,1.0]
[1739782069662,0.03,184.03,183.97,42.53422487]
[1739782069855,41.56422487,184.03,183.96,2.0]
[1739782070061,38.59248111,184.02,183.96,2.0]
[1739782070249,41.53422487,184.01,183.95,2.0]
[1739782070564,25.56961056,184.02,183.95,1.0]
[1739782071065,25.56961056,184.01,183.95,1.0]
[1739782071443,13.3151,184.0,183.94,26.56961056]
[1739782071642,13.3151,184.0,183.94,27.56961056]
[1739782071845,13.3151,184.0,183.92,48.19007052]
[1739782071846,25.56961056,183.97,183.92,48.19007052]
[1739782072186,25.56961056,183.97,183.92,50.19007052]
[1739782072349,25.56961056,183.98,183.92,50.19007052]
[1739782072851,32.3368,184.0,183.92,50.19007052]
[1739782073049,32.3368,184.0,183.93,1.0]
[1739782073254,32.3368,184.0,183.92,74.77017017]
[1739782073554,19.0217,184.0,183.92,73.77017017]
[1739782073761,19.0217,184.0,183.92,75.77017017]
[1739782074068,19.0217,184.0,183.92,50.19007052]
[1739782074442,19.0217,184.0,183.92,75.77017017]
[1739782075874,19.0217,184.0,183.92,74.77017017]
[1739782076053,19.0217,184.0,183.92,75.77017017]
[1739782076769,19.0217,184.0,183.92,27.58009965]
[1739782076962,19.0217,184.0,183.92,26.58009965]
[1739782077147,19.0217,184.0,183.92,27.58009965]
[1739782077348,19.0217,184.0,183.93,1.0]
[1739782077549,0.03,184.03,183.94,27.58009965]
[1739782077759,0.03,184.03,183.95,1.0]
[1739782077976,0.03,184.03,183.96,1.0]
[1739782078177,0.03,184.03,183.96,2.0]
[1739782078560,0.03,184.03,183.96,27.58009965]
[1739782078872,0.03,184.03,183.97,26.58009965]
[1739782079169,32.3299,184.04,183.98,25.58009965]
[1739782079381,30.0,184.03,183.92,0.063]
[1739782079553,20.0,184.0,183.92,0.063]
[1739782080182,13.3158,183.99,183.92,0.063]
[1739782080357,13.3158,183.99,183.91,46.21806553]
[1739782080358,36.3058,183.98,183.91,46.21806553]
[1739782080563,36.3058,183.98,183.91,5.50386553]
[1739782080754,20.0,183.95,183.91,5.50386553]
[1739782081152,6.3058,183.98,183.91,5.50386553]
[1739782082576,32.3421,183.97,183.91,5.50386553]
[1739782083072,32.3421,183.97,183.91,6.553e-05]
[1739782083289,32.3421,183.97,183.87,32.53179395]
[1739782083781,20.0,183.94,183.87,32.53179395]
[1739782083959,20.0,183.93,183.87,13.41709395]
[1739782084158,20.0,183.93,183.87,9.395e-05]
[1739782084373,20.0,183.93,183.86,83.04583192]
[1739782084374,13.321,183.92,183.86,65.01502667]
[1739782084576,32.351,183.92,183.86,65.01502667]
[1739782084878,32.351,183.92,183.84,26.58009965]
[1739782085452,32.351,183.92,183.85,25.58009965]
[1739782086368,32.351,183.92,183.85,26.58009965]
[1739782086883,32.351,183.92,183.84,26.58009965]
[1739782087472,13.321,183.92,183.88,25.58009965]
[1739782087678,13.321,183.92,183.89,25.58009965]
[1739782088280,13.321,183.92,183.9,25.58009965]
[1739782088663,32.3421,183.97,183.89,26.58009965]
[1739782089679,32.3421,183.97,183.89,25.58009965]
[1739782089892,32.3421,183.97,183.89,26.58009965]
[1739782090182,13.3173,183.97,183.91,27.58009965]
[1739782090395,13.3173,183.97,183.92,27.58009965]
[1739782090868,13.3173,183.97,183.92,26.58009965]
[1739782091074,13.3173,183.97,183.92,2.0]
[1739782091378,13.3173,183.97,183.92,1.0]
[1739782091984,0.03,183.98,183.92,1.0]
[1739782092159,20.0,183.97,183.88,2.0]
[1739782092363,20.0,183.95,183.87,0.063]
[1739782092688,20.0,183.94,183.87,0.063]
[1739782093463,20.0,183.93,183.82,122.52364644]
[1739782093685,21.0,183.91,183.82,94.11934776]
[1739782093993,13.3253,183.86,183.82,63.15795164]
[1739782094201,13.3253,183.86,183.82,57.50955358]
[1739782094399,13.3253,183.86,183.82,50.92875366]
[1739782094603,13.3253,183.86,183.82,42.45615673]
[1739782094884,13.3253,183.86,183.78,1.5993]
[1739782095087,32.3615,183.86,183.76,24.35520062]
[1739782095267,20.0,183.83,183.75,6.2298]
[1739782095464,20.0,183.83,183.75,3.40560097]
[1739782095672,21.0,183.83,183.75,3.40560097]
[1739782096077,20.0,183.79,183.75,9.7e-07]
[1739782096595,21.0,183.79,183.73,9.7e-07]
[1739782096791,20.0,183.79,183.73,9.7e-07]
[1739782098070,13.3311,183.78,183.73,9.7e-07]
[1739782099485,20.0,183.75,183.73,9.7e-07]
[1739782100410,3.8097,183.74,183.73,9.7e-07]
[1739782102173,9.5222,183.78,183.73,9.7e-07]
[1739782102579,32.3703,183.81,183.73,9.7e-07]
[1739782102780,20.0,183.78,183.73,9.7e-07]
[1739782103878,13.3318,183.77,183.73,9.7e-07]
[1739782108798,13.3318,183.77,183.71,0.063]
[1739782108799,20.0,183.74,183.71,9.7e-07]
[1739782110103,3.8099,183.73,183.71,9.7e-07]
[1739782113091,3.8099,183.73,183.71,25.58010062]
[1739782113404,3.8099,183.73,183.72,25.58009965]
[1739782114291,3.8099,183.73,183.71,25.58010062]
[1739782114488,3.8099,183.73,183.71,9.7e-07]
[1739782115088,3.8086,183.79,183.76,1.0]
[1739782115286,3.8086,183.79,183.77,25.58009965]
[1739782115489,13.3603,183.79,183.74,1.0]
[1739782115677,4.82,183.78,183.75,26.58009965]
[1739782115874,4.82,183.78,183.77,1.0]
[1739782116179,4.82,183.78,183.77,26.58009965]
[1739782116593,4.82,183.78,183.77,25.58009965]
[1739782117510,8.6289,183.78,183.77,25.58009965]
[1739782117712,3.8089,183.78,183.77,25.58009965]
[1739782118803,0.03,183.79,183.77,25.58009965]
[1739782121282,0.03,183.79,183.76,25.58009965]
[1739782122310,20.03,183.79,183.71,25.58010062]
[1739782122514,20.03,183.79,183.71,9.7e-07]
[1739782122891,20.03,183.79,183.71,1.00000097]
[1739782123093,20.03,183.79,183.71,26.58010062]
[1739782123707,20.03,183.79,183.72,25.58009965]
[1739782124006,32.3756,183.78,183.71,9.7e-07]
[1739782126304,32.3756,183.78,183.71,25.58010062]
[1739782128607,32.3756,183.78,183.73,25.58009965]
[1739782129609,32.3756,183.78,183.74,25.58009965]
[1739782130000,19.0445,183.78,183.74,25.58009965]
[1739782130219,19.0445,183.78,183.73,25.58009965]
[1739782131204,19.0445,183.78,183.72,1.0]
[1739782131503,19.0445,183.78,183.74,25.58009965]
[1739782132115,19.0445,183.78,183.73,25.58009965]
[1739782133524,0.03,183.79,183.74,25.58009965]
[1739782134021,0.03,183.79,183.75,25.58009965]
[1739782134222,0.03,183.79,183.76,25.58009965]
[1739782134602,0.03,183.79,183.76,16.01501884]
[1739782134807,0.03,183.79,183.71,9.7e-07]
[1739782134808,0.03,183.79,183.78,16.01501884]
[1739782135825,0.03,183.79,183.77,16.01501884]
[1739782136024,0.03,183.79,183.76,16.01501884]
[1739782136403,0.03,183.79,183.77,16.01501884]
[1739782137625,0.03,183.79,183.78,16.01501884]
[1739782138029,0.03,183.79,183.77,16.01501884]
[1739782139942,0.03,183.79,183.76,16.01501884]
[1739782140124,12.56859699,183.82,183.76,16.01501884]
[1739782140616,31.60889699,183.82,183.75,17.63661884]
[1739782141016,31.60889699,183.82,183.76,16.01501884]
[1739782141215,31.60889699,183.82,183.78,16.01501884]
[1739782141416,31.60889699,183.82,183.79,16.01501884]
[1739782141709,31.60889699,183.82,183.78,17.01501884]
[1739782142328,31.60889699,183.82,183.78,1.0]
[1739782144232,12.56859699,183.82,183.78,1.0]
[1739782144928,12.56859699,183.82,183.78,17.01501884]
[1739782145126,12.56859699,183.82,183.79,17.01501884]
[1739782145319,12.56859699,183.82,183.8,1.0]
[1739782145728,12.56859699,183.82,183.79,17.01501884]
[1739782146027,3.04849699,183.82,183.81,16.01501884]
[1739782146339,9.5186,183.85,183.81,16.01501884]
[1739782146515,3.807,183.87,183.83,17.01501884]
[1739782146710,13.3245,183.87,183.83,17.01501884]
[1739782147124,13.3245,183.87,183.83,16.01501884]
[1739782147325,13.3245,183.87,183.82,17.01501884]
[1739782147830,13.3245,183.87,183.78,17.01501884]
[1739782148231,13.3245,183.87,183.78,16.01501884]
[1739782148539,13.3245,183.87,183.77,17.01501884]
[1739782148720,20.0,183.84,183.78,1.0]
[1739782148919,4.62,183.83,183.79,1.0]
[1739782149119,24.62,183.83,183.76,1.0]
[1739782149332,24.62,183.83,183.75,1.6216]
[1739782149534,20.0,183.83,183.75,1.6216]
[1739782149838,27.27736371,184.0,183.75,1.6216]
[1739782149839,16.98772742,183.96,183.95,1.0]
[1739782150054,65.85245309,184.04,183.98,1.0]
[1739782150355,65.85245309,184.04,183.98,18.64331884]
[1739782150650,65.85245309,184.04,183.98,28.16839702]
[1739782151720,20.0,184.08,184.03,1.0]
[1739782151920,4.9,184.07,184.04,25.54009702]
[1739782152423,4.9,184.06,184.04,25.54009702]
[1739782152835,4.9,184.06,184.03,26.54009702]
[1739782153542,8.7031,184.06,184.02,26.54009702]
[1739782153742,3.8031,184.06,184.02,1.0]
[1739782154243,3.8031,184.06,184.02,26.54009702]
[1739782154423,9.5054,184.11,184.03,1.0]
[1739782154620,9.5054,184.11,184.02,26.54009702]
[1739782154825,20.0,184.1,184.02,1.0]
[1739782155020,4.88,184.09,184.02,1.0]
[1739782155629,4.88,184.09,184.05,1.0]
[1739782155829,4.88,184.09,184.04,1.0]
[1739782156526,4.86,184.08,184.06,1.0]
[1739782156727,9.5054,184.11,184.05,1.0]
[1739782157740,20.0,184.12,184.05,1.0]
[1739782157945,4.86,184.11,184.05,1.0]
[1739782158916,4.86,184.11,184.06,1.0]
[1739782159250,4.86,184.11,184.02,25.54009702]
[1739782159251,4.84,184.1,184.05,1.0]
[1739782160144,3.8024,184.09,184.05,1.0]
[1739782160361,13.3086,184.09,184.05,1.0]
[1739782160525,1.35016978,184.14,184.04,1.0]
[1739782160828,7.3989,184.16,184.04,1.0]
[1739782160829,25.50525524,184.15,184.04,1.0]
[1739782161025,31.0,184.14,184.02,1.0]
[1739782161226,4.82,184.13,184.02,1.0]
[1739782161659,95.7441,184.13,184.04,1.0]
[1739782161863,9.5041,184.13,184.04,1.0]
[1739782162522,20.0,184.1,184.04,1.0]
[1739782162858,4.82,184.09,184.04,1.0]
[1739782163238,4.82,184.09,184.03,1.0]
[1739782164159,13.3093,184.08,184.02,1.0]
[1739782164849,13.3093,184.08,184.03,1.0]
[1739782165051,13.3093,184.08,184.02,1.0]
[1739782166051,9.5067,184.08,184.02,1.0]
[1739782168448,22.8136,184.1,184.02,1.0]
[1739782169941,9.5067,184.08,184.02,1.0]
[1739782171466,9.5067,184.08,184.01,1.0]
[1739782171755,9.5067,184.08,184.0,9.12932809]
[1739782172335,9.5067,184.08,184.0,8.12932809]
[1739782172529,9.5067,184.08,184.0,9.12932809]
[1739782173055,9.5067,184.08,184.01,1.0]
[1739782173553,9.5067,184.08,184.0,1.0]
[1739782174063,9.5067,184.08,184.01,1.0]
[1739782176061,20.0,184.07,184.01,1.0]
[1739782176236,4.74,184.06,184.01,1.0]
[1739782177253,4.74,184.06,184.0,0.063]
[1739782177460,5.29664005,184.07,184.0,0.063]
[1739782177653,28.5186,184.09,184.0,1.063]
[1739782177851,28.5186,184.09,184.0,0.063]
[1739782178265,13.41184853,184.08,184.0,0.063]
[1739782178572,99.61184853,184.08,184.0,0.063]
[1739782179647,20.0,184.05,184.0,0.063]
[1739782179842,13.3123,184.04,184.0,0.063]
[1739782180262,13.3123,184.04,184.0,1.063]
[1739782181645,13.3101,184.07,184.0,1.063]
[1739782186760,32.3246,184.07,184.0,0.063]
[1739782187544,32.3246,184.07,184.0,0.663]
[1739782190961,32.3246,184.07,183.95,1.5002]
[1739782190962,20.0,184.04,183.97,1.0]
[1739782191168,13.3137,184.02,183.97,1.0]
[1739782191549,13.3137,184.02,183.98,1.0]
[1739782191950,13.3137,184.02,183.97,1.0]
[1739782192167,13.3137,184.02,183.95,2.5002]
[1739782192348,32.3333,184.02,183.97,1.0]
[1739782192769,32.3333,184.02,183.96,1.0]
[1739782193067,32.3333,184.02,183.97,1.0]
[1739782193268,28.5294,184.02,183.97,1.0]
[1739782193580,9.5098,184.02,183.97,1.0]
[1739782193776,9.5098,184.02,183.99,1.0]
[1739782195174,3.8031,184.06,183.99,1.0]
[1739782195381,13.3108,184.06,184.01,1.0]
[1739782195575,13.3108,184.06,184.02,1.0]
[1739782195753,13.3108,184.06,184.01,1.0]
[1739782195960,13.3108,184.06,184.0,1.0]
[1739782196169,13.3108,184.06,184.01,1.0]
[1739782196674,3.8031,184.06,184.05,1.0]
[1739782198060,0.03,184.08,184.05,1.0]
[1739782198271,0.03,184.08,184.07,1.0]
[1739782199864,3.8002,184.2,184.19,1.0]
[1739782200197,8.4402,184.2,184.19,1.0]
[1739782200560,4.64,184.2,184.19,1.0]
[1739782200860,8.38292245,184.25,184.17,6.2366]
[1739782200861,3.7993,184.24,184.21,1.0]
[1739782201564,3.7993,184.24,184.2,1.0]
[1739782201767,3.7993,184.24,184.22,1.0]
[1739782201974,3.7993,184.24,184.2,1.0]
[1739782202374,3.7993,184.24,184.21,1.0]
[1739782202576,3.7993,184.24,184.22,1.0]
[1739782202973,3.7993,184.24,184.21,1.0]
[1739782203761,13.2977,184.24,184.19,1.0]
[1739782203985,3.7993,184.24,184.22,1.0]
[1739782204386,3.7993,184.24,184.2,1.0]
[1739782204883,3.7993,184.24,184.21,1.0]
[1739782205070,3.7993,184.24,184.19,1.0]
[1739782205476,13.2977,184.24,184.18,1.0]
[1739782205669,13.2977,184.24,184.17,1.0]
[1739782206587,3.7993,184.24,184.21,1.0]
[1739782206794,3.7993,184.24,184.23,1.0]
[1739782207262,3.7993,184.24,184.21,1.0]
[1739782207466,3.7993,184.24,184.23,1.0]
[1739782207667,3.7993,184.24,184.21,1.0]
[1739782207875,3.7993,184.24,184.17,1.0]
[1739782208084,3.7993,184.24,184.16,1.0]
[1739782208290,9.4979,184.25,184.16,1.0]
[1739782208680,9.4979,184.25,184.15,1.0]
[1739782209189,20.0,184.21,184.12,1.0]
[1739782209395,20.0,184.21,184.09,7.7439]
[1739782209396,4.68,184.2,184.11,1.0]
[1739782209571,20.0,184.21,184.12,1.0]
[1739782209772,20.0,184.21,184.15,1.0]
[1739782210190,6.0269,184.24,184.17,1.0]
[1739782210985,13.2984,184.23,184.17,1.0]
[1739782211177,13.2984,184.23,184.15,1.0]
[1739782211580,13.2984,184.23,184.18,1.0]
[1739782211777,13.2984,184.23,184.17,1.0]
[1739782212014,13.2984,184.23,184.15,1.0]
[1739782212310,9.4989,184.23,184.17,1.0]
[1739782212870,9.4989,184.23,184.18,1.0]
[1739782213067,9.4989,184.23,184.16,1.0]
[1739782213583,9.4989,184.23,184.17,1.0]
[1739782213774,9.4989,184.23,184.18,1.0]
[1739782213974,9.4989,184.23,184.17,1.0]
[1739782214281,20.0,184.2,184.16,1.0]
[1739782214594,18.0014,184.19,184.15,1.0]
[1739782214796,13.3014,184.19,184.17,1.0]
[1739782214971,13.3014,184.19,184.11,15.96721092]
[1739782214972,13.3014,184.19,184.16,1.0]
[1739782215171,13.3014,184.19,184.15,1.0]
[1739782215579,13.3014,184.19,184.14,1.0]
[1739782215785,13.3014,184.19,184.13,1.0]
[1739782215984,13.3014,184.19,184.14,1.0]
[1739782216387,13.3014,184.19,184.13,1.0]
[1739782216695,13.3014,184.19,184.14,1.0]
[1739782216996,13.3014,184.19,184.13,1.0]
[1739782217602,13.3014,184.19,184.14,1.0]
[1739782217898,13.3014,184.19,184.13,1.0]
[1739782218086,20.0,184.16,184.1,1.0]
[1739782218289,4.74,184.15,184.1,1.0]
[1739782218472,13.305,184.14,184.09,2.6525]
[1739782218794,13.305,184.14,184.13,1.0]
[1739782218992,13.305,184.14,184.09,2.6525]
[1739782219501,13.305,184.14,184.11,1.0]
[1739782219886,13.305,184.14,184.09,1.0]
[1739782220380,32.3069,184.17,184.08,1.063]
[1739782220582,32.3069,184.17,184.08,0.063]
[1739782220583,20.0,184.14,184.08,0.063]
[1739782221295,20.0,184.13,184.08,0.063]
[1739782222179,51.311,184.17,184.09,1.0]
[1739782222580,20.0,184.12,184.09,1.0]
[1739782222788,4.72,184.11,184.08,1.063]
[1739782222988,20.0,184.12,184.08,0.063]
[1739782224102,20.0,184.12,184.09,1.0]
[1739782224278,4.74,184.11,184.09,1.0]
[1739782224605,19.0041,184.17,184.11,1.0]
[1739782224801,19.0041,184.17,184.12,1.0]
[1739782225700,20.0,184.14,184.08,1.063]
[1739782225891,20.0,184.14,184.08,0.063]
[1739782226200,20.0,184.12,184.04,1.0]
[1739782226379,20.0,184.1,184.04,1.0]
[1739782226577,3.8024,184.09,184.07,1.0]
[1739782226790,3.8024,184.09,184.08,1.0]
[1739782227380,20.0,184.08,184.0,1.7027]
[1739782227592,20.0,184.06,184.0,0.063]
[1739782228183,32.321,184.09,184.0,0.063]
[1739782228577,28.5186,184.09,184.0,0.063]
[1739782232304,20.0,184.06,184.0,0.063]
[1739782232700,20.0,184.06,183.91,13.41184853]
[1739782232906,13.3115,184.05,183.94,15.96721092]
[1739782234506,13.3115,184.05,183.95,15.96721092]
[1739782234683,13.3115,184.05,183.94,15.96721092]
[1739782234882,13.3115,184.05,183.96,15.96721092]
[1739782235703,13.3115,184.05,183.92,0.81521335]
[1739782235704,13.3115,184.05,183.95,1.5004]
[1739782236091,13.3115,184.05,183.94,18.25555429]
[1739782236804,13.3115,184.05,183.95,15.96721092]
[1739782237323,13.3115,184.05,183.96,15.96721092]
[1739782237609,13.3115,184.05,183.96,0.063]
[1739782238121,13.3115,184.05,183.96,16.03021092]
[1739782238488,13.3115,184.05,183.96,0.063]
[1739782239000,32.328,184.05,183.96,0.063]
[1739782239607,28.5247,184.05,183.96,0.063]
[1739782246326,9.5082,184.05,183.96,16.03021092]
[1739782247418,9.5082,184.05,183.96,0.063]
[1739782249152,9.5082,184.05,183.91,2.47108816]
[1739782249365,9.5082,184.05,183.93,15.96721092]
[1739782249544,9.5082,184.05,183.94,15.96721092]
[1739782249719,9.5082,184.05,183.93,15.96721092]
[1739782250220,9.5082,184.05,183.94,15.96721092]
[1739782250412,9.5082,184.05,183.94,16.03021092]
[1739782252131,9.5082,184.05,183.96,15.96721092]
[1739782252313,9.5082,184.05,183.94,0.063]
[1739782252507,9.5082,184.05,183.94,16.03021092]
[1739782252732,9.5082,184.05,183.95,10.22707304]
[1739782252926,9.5082,184.05,183.96,10.22707304]
[1739782253128,9.5082,184.05,183.98,10.22707304]
[1739782253340,3.8031,184.06,184.0,10.22707304]
[1739782253514,3.8031,184.06,183.99,10.22707304]
[1739782253713,9.5366,184.09,183.99,10.22707304]
[1739782254129,9.5366,184.09,183.98,10.22707304]
[1739782254738,9.5366,184.09,183.99,15.97197809]
[1739782255147,9.5366,184.09,183.96,4.62013969]
[1739782255148,9.5366,184.09,183.98,15.97197809]
[1739782256155,9.5366,184.09,183.99,15.97197809]
[1739782256650,9.5366,184.09,184.0,15.97197809]
[1739782257432,9.5366,184.09,183.99,15.97197809]
[1739782258028,9.5366,184.09,184.0,15.97197809]
[1739782259250,9.5366,184.09,184.0,17.59257809]
[1739782259660,9.5366,184.09,184.0,1.6206]
[1739782261262,9.5366,184.09,184.0,17.59257809]
[1739782261447,9.5366,184.09,184.0,1.6206]
[1739782262536,9.5366,184.09,183.98,13.41184853]
[1739782262537,9.5366,184.09,183.98,15.97197809]
[1739782262746,9.5366,184.09,183.97,15.97197809]
[1739782263555,9.5366,184.09,183.96,17.61727809]
[1739782263880,20.0,184.06,183.94,0.87797633]
[1739782264046,20.0,184.06,183.94,0.063]
[1739782265351,9.5366,184.09,183.94,0.063]
[1739782265352,20.0,184.05,183.94,0.063]
[1739782265532,40.423,184.04,183.91,15.97197809]
[1739782266141,20.0,184.01,183.9,15.97197809]
[1739782267056,20.0,184.01,183.91,15.97197809]
[1739782267259,21.4054,184.04,183.92,15.97197809]
[1739782267461,21.4054,184.04,183.93,15.97197809]
[1739782267939,21.4054,184.04,183.92,15.97197809]
[1739782269658,20.0,184.01,183.91,15.97197809]
[1739782270564,20.0,184.01,183.9,15.97197809]
[1739782270749,20.0,184.01,183.91,15.97197809]
[1739782270955,3.8043,184.0,183.92,15.97197809]
[1739782271349,20.0,183.97,183.89,0.063]
[1739782271550,20.0,183.97,183.9,15.97197809]
[1739782271752,13.3151,184.0,183.91,15.97197809]
[1739782271956,13.3151,184.0,183.92,15.97197809]
[1739782272557,13.3151,184.0,183.91,15.97197809]
[1739782272939,20.0,184.0,183.91,15.97197809]
[1739782273558,20.0,184.0,183.9,15.97197809]
[1739782274364,13.3158,183.99,183.91,0.063]
[1739782276183,13.3158,183.99,183.91,16.03497809]
[1739782276555,13.3158,183.99,183.91,10.29331327]
[1739782277743,13.3158,183.99,183.91,0.063]
[1739782280948,13.3158,183.99,183.91,10.29331327]
[1739782282278,13.3158,183.99,183.91,0.063]
[1739782285581,13.3158,183.99,183.91,10.29331327]
[1739782285962,13.3158,183.99,183.91,0.063]
[1739782289571,13.3158,183.99,183.91,10.29331327]
[1739782290359,13.3158,183.99,183.92,10.23031327]
[1739782290862,13.3158,183.99,183.91,10.29331327]
[1739782291678,20.0,184.0,183.91,0.063]
[1739782293461,20.0,184.0,183.92,10.23031327]
[1739782293656,3.8045,183.99,183.92,10.23031327]
[1739782293970,3.8045,183.99,183.91,10.29331327]
[1739782294279,13.3158,183.99,183.91,10.29331327]
[1739782294484,13.3158,183.99,183.91,0.063]
[1739782295606,13.3158,183.99,183.91,10.29331327]
[1739782296257,13.3158,183.99,183.91,0.063]
[1739782297571,13.3458,183.99,183.91,0.063]
[1739782301568,3.8345,183.99,183.91,0.063]
[1739782301887,3.8345,183.99,183.93,10.23031327]
[1739782302367,3.8345,183.99,183.94,10.23031327]
[1739782302785,0.03,183.99,183.92,10.23031327]
[1739782302987,20.03,183.99,183.91,0.063]
[1739782304767,0.03,183.99,183.91,0.063]
[1739782304966,3.8047,183.98,183.91,4.02302893]
[1739782305691,3.8047,183.98,183.93,10.23031327]
[1739782306267,3.8047,183.98,183.92,10.23031327]
[1739782306794,3.8345,183.99,183.91,10.29331327]
[1739782308489,13.3458,183.99,183.91,0.063]
[1739782309586,13.3458,183.99,183.92,3.96976476]
[1739782310990,13.3458,183.99,183.91,0.063]
[1739782311896,13.3458,183.99,183.91,10.29331327]
[1739782312387,13.3458,183.99,183.92,10.23031327]
[1739782312590,13.3458,183.99,183.93,10.23031327]
[1739782314589,13.3458,183.99,183.92,10.23031327]
[1739782315274,13.3458,183.99,183.93,3.97379507]
[1739782316394,13.3458,183.99,183.92,10.23031327]
[1739782317277,13.3458,183.99,183.91,10.29331327]
[1739782318003,13.3458,183.99,183.92,3.97475426]
[1739782319587,13.3458,183.99,183.93,3.97475426]
[1739782320894,13.3458,183.99,183.91,0.063]
[1739782321093,9.5113,183.99,183.91,0.063]
[1739782321396,9.5413,183.99,183.91,0.063]
[1739782321978,1.6069,183.95,183.91,0.063]
[1739782322477,1.6069,183.95,183.91,0.0001]
[1739782322799,20.0,183.92,183.83,0.063]
[1739782322999,26.2765,183.91,183.83,0.063]
[1739782323305,1.6171,183.89,183.83,0.063]
[1739782324778,13.3238,183.88,183.83,0.063]
[1739782325586,15.01477564,183.88,183.83,0.063]
[1739782326484,20.0,183.85,183.83,0.063]
[1739782326683,3.8076,183.84,183.83,0.063]
[1739782328791,13.3238,183.88,183.83,0.063]
[1739782330290,3.8068,183.88,183.83,0.063]
[1739782332009,9.5166,183.89,183.83,0.063]
[1739782333606,20.0,183.86,183.83,0.063]
[1739782333987,3.8074,183.85,183.83,0.063]
[1739782336514,9.5166,183.89,183.83,0.063]
[1739782338086,9.5166,183.89,183.83,10.29331327]
[1739782339099,9.5166,183.89,183.83,0.063]
[1739782348613,20.0,183.86,183.83,0.063]
[1739782349213,3.8074,183.85,183.83,0.063]
[1739782356225,3.8074,183.85,183.83,0.0001]
[1739782359002,20.0,183.84,183.83,0.0001]
[1739782359429,23.8076,183.84,183.83,0.0001]
[1739782376725,3.8076,183.84,183.83,0.0001]
[1739782378960,32.3544,183.9,183.83,0.0001]
[1739782379848,0.03,183.84,183.83,0.0001]
[1739782393432,0.03,183.84,183.83,10.23041327]
[1739782397731,0.03,183.84,183.83,23.6422618]
[1739782398243,0.03,183.84,183.83,27.4500618]
[1739782399037,0.03,183.84,183.83,31.44234601]
[1739782399260,0.03,183.84,183.83,27.63454601]